Cogmind - Beta 15 @@@ ROGUE MODE // 2025.05.10 @ 22:55:49 Player: Darcyisverycute Result: Destroyed by NR-SB3(R) with Subdweller Laser Performance ------------- Evolutions (0) 0 Regions Visited (2) 400 Robots Destroyed (19) 95 Value Destroyed (436) 436 Prototype IDs (0) 0 Alien Tech Used (0) 0 Bonus (0) 0 TOTAL SCORE: 931 Bonus ------- None Cogmind --------- Core Integrity 0/250 Matter 265/300 Energy 170/170 System Corruption 1% Temperature Cool (6) Movement Rolling (115) Ox1 Location -10/Subcaves Parts ------- > --- POWER (1) -------- Makeshift Power Source > --- PROPULSION (2) --- Aluminum Leg Compact Wheel > --- UTILITY (2) ------ Large Storage Unit > --- WEAPON (2) ------- Subdweller Shrapnel Launcher > --- INVENTORY (15) --- Subdweller Power Source Subdweller Power Source Subdweller Monowheel Subdweller Monowheel Subdweller Optics Sensor Array Signal Interpreter Signal Interpreter Seismic Detector Subdweller Laser Subdweller Laser Mining Laser Peak State ------------ > --- POWER ------------ Makeshift Power Source > --- PROPULSION ------- Aluminum Leg Compact Wheel > --- UTILITY ---------- Large Storage Unit > --- WEAPON ----------- EM Pulse Gun Subdweller Shrapnel Launcher > --- INVENTORY -------- Subdweller Power Source Subdweller Power Source Subdweller Monowheel Subdweller Monowheel Subdweller Optics Sensor Array Signal Interpreter Signal Interpreter Seismic Detector Subdweller Laser Subdweller Laser Mining Laser Shrapnel Trap [Rating: 12] Favorites ----------- Power Ion Engine Engine Ion Engine Propulsion Light Treads Treads Light Treads Leg Aluminum Leg Wheel Compact Wheel Utility Large Storage Unit Device Seismic Detector Storage Large Storage Unit Weapon Light Assault Rifle Energy Gun EM Pulse Gun Ballistic Gun Light Assault Rifle Ballistic Cannon Light Cannon Launcher Subdweller Shrapnel Launcher Special Weapon Mining Laser Build | -11 -10 -10 ------- Run | Yrd Mat Sub Slots Evolved . | . . . Power . | . . . Propulsion . | . . . Utility . | . . . Weapon . | . . . Parts Attached 21 | 7 3 11 Power 4 | 1 . 3 Engine 4 | 1 . 3 Core . | . . . Reactor . | . . . Propulsion 7 | 2 . 5 Treads 3 | 2 . 1 Leg 2 | . . 2 Wheel 2 | . . 2 Hover . | . . . Flight . | . . . Utility 4 | 2 1 1 Device 2 | 1 . 1 Storage 2 | 1 1 . Processor . | . . . Hackware . | . . . Protection . | . . . Artifact . | . . . Weapon 6 | 2 2 2 Energy Gun 2 | 1 . 1 Energy Cannon . | . . . Ballistic Gun 1 | 1 . . Ballistic Cannon 1 | . 1 . Launcher 1 | . . 1 Special Weapon 1 | . 1 . Impact Weapon . | . . . Slashing Weapon . | . . . Piercing Weapon . | . . . Special Melee Weapon . | . . . Unidentified Prototypes . | . . . Parts Lost 12 | . . 12 Power 2 | . . 2 Propulsion 5 | . . 5 Utility 1 | . . 1 Weapon 4 | . . 4 Highest Loss Streak 9 | . . 9 To Critical Strikes . | . . . Average Backups 10 | 3 9 10 Power 1 | . 1 1 Propulsion 3 | 1 4 3 Utility 3 | . 2 4 Weapon 2 | . 2 2 Tool/Special . | . . . Unused Backups 11 | 1 . 10 Power 2 | . . 2 Propulsion 3 | 1 . 2 Utility 4 | . . 4 Weapon 2 | . . 2 Tool/Special . | . . . Average Slot Usage (%) 91 | . 100 89 Engine 13 | . 14 13 Treads 15 | . 28 11 Leg 6 | . . 8 Wheel 6 | . . 7 Device 7 | . 14 6 Storage 14 | . 14 14 Energy Gun 6 | . 5 7 Ballistic Gun 6 | . 14 4 Ballistic Cannon 5 | . 8 4 Launcher 4 | . . 6 Special Weapon 2 | . . 3 Peak Build Rating 12 | 8 8 12 Average Rating 8 | 6 8 8 On Entrance 5 | . 8 8 Naked Turns . | . . . Heaviest Build 35 | 13 30 35 Greatest Support 40 | 40 40 40 Greatest Overweight (x) 2 | . . 2 Average Overweight (x) . | . . 1 Largest Inventory Capacity 15 | 8 15 15 Average Capacity 14 | 7 14 15 Most Carried 15 | 8 13 15 Average Carried 10 | 3 10 11 Final Capacity 15 | 8 15 15 Final Carried 13 | 8 13 12 Class Distribution -------------------- 100% | Mutant Dominant Class ---------------- Mutant | -10/Materials Mutant | -10/Subcaves Resources | -11 -10 -10 ----------- Run | Yrd Mat Sub Matter Collected 750 | 253 133 364 Remotely . | . . . Salvage Created 649 | 135 198 316 Parts 40 | 10 9 21 Haulers Intercepted 1 | . 1 . Recyclers Shooed 1 | 1 . . Parts Field Recycled . | . . . Retrieved Matter . | . . . Parts Self-Destructed 19 | . . 19 Prevented . | . . . Kills | -11 -10 -10 ------- Run | Yrd Mat Sub Combat Hostiles Destroyed 14 | . 6 8 Guns 9 | . 5 4 Cannons 5 | . 1 4 Classes Destroyed 7 | 2 4 1 Tunneler 2 | 2 . . Hauler 1 | . 1 . Recycler 1 | 1 . . Watcher 1 | . 1 . Swarmer 6 | . 3 3 Grunt 3 | . 3 . Subdweller 5 | . . 5 Best Kill Streak 3 | 2 3 3 Combat Bots Only 3 | . 3 3 Max Kills in Single Turn 1 | 1 1 1 Gunslinging . | . . . Exploded . | . . . Melee . | . . . Uniques/NPCs Destroyed . | . . . Combat | -11 -10 -10 -------- Run | Yrd Mat Sub Hostile Shots Fired 144 | . 26 118 Missed 46 | . 11 35 Hits 98 | . 15 83 Projectile 98 | . 15 83 Critical Strikes 6 | . 2 4 Damage Taken 1590 | . 170 1420 Core 255 | . 14 241 Absorbed by Shields . | . . . Core Remaining (%) 100 | 100 . . Volleys Fired 125 | 6 31 88 Largest 2 | 2 2 2 Hottest 140 | 60 100 140 Shots Fired 183 | 12 59 112 Gun 110 | 12 37 61 Cannon 65 | . 21 44 Launcher 2 | . . 2 Special 6 | . 1 5 Kinetic 119 | 6 49 64 Thermal 31 | 6 10 15 Explosive . | . . . Electromagnetic 33 | . . 33 Robot Hit Streak 18 | 7 11 18 Robot Miss Streak 2 | 1 2 2 Penetration Max . | . . . Secondary Targets 1 | . 1 . Max Gunslinging Chain 1 | . 1 . Shots Hit Robots 134 | 8 39 87 Core Hits 44 | 5 15 24 Critical Kills . | . . . Critical Parts Destroyed . | . . . Critical Strikes 4 | . . 4 Blast 4 | . . 4 Melee Attacks . | . . . Impact . | . . . Slashing . | . . . Piercing . | . . . Sneak Attacks . | . . . Combat Hostiles . | . . . Follow-up Attacks . | . . . Damage Inflicted 1729 | 73 433 1223 Guns 830 | 73 226 531 Cannons 625 | . 207 418 Explosions 250 | . . 250 Melee . | . . . Ramming . | . . . Kinetic 1166 | 40 370 756 Thermal 221 | 33 63 125 Explosive . | . . . Electromagnetic 342 | . . 342 Impact . | . . . Slashing . | . . . Piercing . | . . . Highest Corruption 1 | . 1 1 Average Corruption 1 | . 1 1 Corruption Purged . | . . . Corruption Blocked . | . . . Effects 14 | . 4 10 Message Errors 5 | . 1 4 Matter Fused 2 | . 1 1 Heat Flow Errors 2 | . 1 1 Energy Discharges 1 | . . 1 Data Loss (major) 2 | . . 2 Alerts 1 | . 1 . Weapon Failures 1 | . . 1 Overload Shots . | . . . Overflow Damage . | . . . Projectiles . | . . . Explosions . | . . . Melee . | . . . Knockbacks 12 | . 5 7 Impact . | . . . Kinetic 12 | . 5 7 Secondary . | . . . Self-Inflicted Damage 71 | . . 71 Shots 2 | . . 2 Rammed . | . . . Targets Rammed . | . . . Kicked . | . . . Crushed . | . . . Highest Temperature 233 | 40 119 233 Average Temperature 29 | 19 24 133 Received Heat Transfer 348 | . 102 246 Siege Activations . | . . . Martial Activations . | . . . Shielding Activations . | . . . Robots Disrupted . | . . . Combat Hostiles . | . . . Robots Corrupted 1 | . . 1 Combat Hostiles 1 | . . 1 Parts Fried 3 | . . 3 Impact Corruptions . | . . . Robots Melted . | . . . Combat Hostiles . | . . . Parts Melted . | . . . Heat Transferred 500 | 75 150 275 Parts Sabotaged . | . . . Parts Stolen . | . . . Parts Stripped . | . . . Power Chain Reactions . | . . . Alert | -11 -10 -10 ------- Run | Yrd Mat Sub Maximum Alert Level . | . . . Low Security (%) 100 | 100 100 . Level 1 . | . . . Level 2 . | . . . Level 3 . | . . . Level 4 . | . . . Level 5 . | . . . High Security . | . . . Max Security . | . . . Peak Influence 121 | 10 121 . Initial . | . . . Average 50 | 1 69 . Influence Increases 382 | 15 247 120 Destroy 0b10 Robot/C 180 | . 120 60 Destroy 0b10 Robot/NC 25 | 15 10 . Destroy Leader 34 | . 34 . Successful Hack 37 | . 37 . Disable Machine 15 | . 15 . Destroy Structure 1 | . 1 . Lose Combat Pursuer 90 | . 30 60 Influence Decreases 382 | 15 169 198 Entered New Map 38 | . . 38 Time Decay 314 | 15 169 130 Lost Part 30 | . . 30 Squads Dispatched 1 | . 1 . Investigation . | . . . Extermination . | . . . Reinforcement 1 | . 1 . Assault . | . . . Garrison . | . . . Intercept . | . . . Searches Triggered . | . . . Construction Impeded . | . . . Haulers Reinforced . | . . . Active Scanning Responses . | . . . Cargo Convoy Interrupts . | . . . Stealth | -11 -10 -10 --------- Run | Yrd Mat Sub Distress Signals 3 | . 3 . Communications Jammed . | . . . Distress Signals . | . . . Times Spotted 27 | . 12 15 Peak Tracking Total 6 | . 4 6 Tactical Retreats 4 | . 2 2 Traps | -11 -10 -10 ------- Run | Yrd Mat Sub Traps Triggered 1 | . 1 . Indirectly . | . . . Trap Hack Attempts . | . . . Triggered . | . . . Disarmed . | . . . Reprogrammed . | . . . Reused 1 | . . 1 Traps Extracted . | . . . Installed 1 | . . 1 Triggered . | . . . Most Traps Carried 1 | . . 1 Machines | -11 -10 -10 ---------- Run | Yrd Mat Sub Machines Disabled 1 | . 1 . Max in Single Turn 1 | . 1 . Machines Repaired . | . . . Machines Dismantled . | . . . Machines Sabotaged . | . . . Overloaded Fab Kills . | . . . Hacking | -11 -10 -10 --------- Run | Yrd Mat Sub Machines Accessed 5 | . 5 . Terminals 4 | . 4 . Fabricators . | . . . Repair Stations . | . . . Recycling Units 1 | . 1 . Scanalyzers . | . . . Garrison Access . | . . . Total Hacks 12 | . 12 . Successful 7 | . 7 . Failed 5 | . 5 . Catastrophic 1 | . 1 . Database Lockouts . | . . . Manual 9 | . 9 . Terminals 8 | . 8 . Fabricators . | . . . Repair Stations . | . . . Recycling Units 4 | . 4 . Scanalyzers . | . . . Garrison Access . | . . . Terminal Hacks 5 | . 5 . Part Schematic 2 | . 2 . Terminal Index 1 | . 1 . Locate Traps 1 | . 1 . Hauler Manifests 1 | . 1 . Fabricator Hacks . | . . . Repair Station Hacks . | . . . Recycling Unit Hacks . | . . . Scanalyzer . | . . . Garrison Access Hacks . | . . . Unauthorized Hacks 2 | . 2 . Terminals . | . . . Fabricators . | . . . Repair Stations . | . . . Recycling Units 2 | . 2 . Reject 1 | . 1 . Mask 1 | . 1 . Scanalyzers . | . . . Garrison Access . | . . . Data Cores Recovered . | . . . Used . | . . . Hacking Detections 4 | . 4 . Full Trace Events . | . . . Feedback Events . | . . . Feedback Blocked . | . . . Robot Schematics Acquired . | . . . Robots Built . | . . . Authchips . | . . . Time . | . . . Total Robot Build Rating . | . . . Part Schematics Acquired 2 | . 2 . Parts Built . | . . . Authchips . | . . . Time . | . . . Total Part Build Rating . | . . . Parts Repaired . | . . . Time . | . . . Parts Recycled . | . . . Recycled Matter . | . . . Retrieved Matter . | . . . Retrieved Components . | . . . Parts Scanalyzed . | . . . Part Schematics Acquired . | . . . Parts Damaged . | . . . Bothacking | -11 -10 -10 ------------ Run | Yrd Mat Sub Used RIF Installer . | . . . Robots Hacked . | . . . Non-combat . | . . . Combat . | . . . Robot Hacks Applied . | . . . Relay Couplers Released . | . . . Fabnet Peak Effective % . | . . . Robots Rewired . | . . . Allies Hacked . | . . . Hacks Repelled . | . . . Allies | -11 -10 -10 -------- Run | Yrd Mat Sub Total Allies . | . . . Largest Group . | . . . Highest-Rated Group . | . . . Highest-Rated Ally . | . . . Total Orders . | . . . Ally Attacks . | . . . Total Damage . | . . . Kills . | . . . Allies Corrupted . | . . . Allies Melted . | . . . Intel | -11 -10 -10 ------- Run | Yrd Mat Sub Active Infowar (turns) 1106 | 96 387 623 Terrain 44 | . . 44 Seismic 1062 | 96 387 579 Robot Analysis Total . | . . . Derelict Logs Recovered . | . . . Drone Launches . | . . . Drone Recoveries . | . . . Exploration | -11 -10 -10 ------------- Run | Yrd Mat Sub Turns Passed 1988 | 147 387 1454 Spaces Moved 1110 | 72 174 864 Core 3 | 3 . . Treads 537 | 69 174 294 Legs . | . . . Wheels 570 | . . 570 Hover . | . . . Flight . | . . . Fastest Speed 50 | 50 160 115 Average Speed 142 | 155 160 137 Slowest Speed 160 | 160 160 160 Overloaded Moves . | . . . Propulsion Burnouts . | . . . Robots Hopped . | . . . Potential Cave-ins . | . . . Cave-ins Triggered . | . . . Exploration Rate (%) 36 | 4 49 57 Regions Visited 2 Branch Regions 1 Pre-discovered Areas 1 | . . 1 Known Exits Taken . | . . . Unknown Exits Taken 2 | 1 1 . Scrap Searched . | . . . Spaces Dug . | . . . Terrain Destroyed 35 | . . 35 Melee . | . . . Projectile . | . . . AOE 35 | . . 35 Terrain Rammed . | . . . Walls Destroyed . | . . . Machines Disabled . | . . . Actions | -11 -10 -10 --------- Run | Yrd Mat Sub Total 1328 | 95 227 1006 Wait 34 | 1 14 19 Move 1108 | 71 173 864 Hop . | . . . Pick Up 26 | 9 5 12 Fast Attach 7 | 7 . . Attach 11 | . . 11 Detach 1 | . . 1 Swap 10 | . 3 7 Drop 5 | 1 1 3 Fire 125 | 6 31 88 Melee . | . . . Ram . | . . . Kick . | . . . Crush . | . . . Escape Stasis . | . . . Rewire . | . . . Trap 1 | . . 1 Miscellaneous . | . . . Route ------- -11/Scrapyard -10/Materials (discovered 2 exits: [*Mat] / [*Sub]) -10/Subcaves (discovered 1 exit: [*Mat]) History --------- Turn | Location | Event 6 | -11/Scrapyard | Discovered new exit (range 16) 148 | -11/Scrapyard | Entered Materials 309 | -10/Materials | Build established: Mutant 335 | -10/Materials | Discovered new exit (range 9) 530 | -10/Materials | Discovered new exit (range 3) 535 | -10/Materials | Entered Subcaves 536 | -10/Subcaves | Approached by a straggling Scientist 713 | -10/Subcaves | Learned location of Zion (-7) 713 | -10/Subcaves | Met a Zionite searching for "candidates" 1145 | -10/Subcaves | Core integrity fell below 50% 1171 | -10/Subcaves | Core integrity fell below 20% 1181 | -10/Subcaves | Discovered new exit (range 15) 1193 | -10/Subcaves | Lost 9 parts (1p4n1u3w) 1947 | -10/Subcaves | A swath of the cavern ceiling suddenly collapsed 1984 | -10/Subcaves | Ambushed by Subdweller buried in earth 1987 | -10/Subcaves | Ambushed by Subdweller buried in earth 1987 | -10/Subcaves | Ambushed by Subdweller buried in earth 1989 | -10/Subcaves | Destroyed by NR-SB3(R) with Subdweller Laser Last Messages --------------- Power Source. 01836_ Acquired 60 matter. 01837_ Acquired 34 matter. 01840_ Acquired Corrupted Sub. Laser. 01844_ Acquired Corrupted Sub. Monowheel. 01847_ Acquired Sub. Power Source. 01849_ Acquired Broken Sub. Power Source. 01850_ Subatomizers dissect the Corrupted Disposable Heat Sink. 01854_ Acquired Corrupted Sub. Optics. 01863_ Subatomizers dissect the Corrupted Disposable Heat Sink. A swath of the cavern ceiling suddenly collapses. 01970_ Dropped Shrapnel Trap. 01970_ Installed Shrapnel Trap. 01985_ UO-V45(R): "GOODGOOD!" 01987_ EM Pulse Gun destroyed. 01988_ MX-OWC(R): "HIDIE!" 01988_ NR-SB3(R): "THANKSYOU!" Map ----- +----------------------------------------------------+ | ####???## ##?### ###?????? ??????## #?????????? | | ##?## ###?# ######??? ??????## ##?????????? | | ### ### # ##?# ##????# #??????????? | | ## ## #?# #????## ##?????????? | | # ## ## #????## #?????????? | | # ######## ## #????# ##?????????? | | # ##?????# ### #????# #??????????? | | ########### ### #???### #??????????? | | ###???# & ## ##### # #??????????? | | ### ##?????# "& # ### ##?????????? | | #?# ##??????##& &"= #?????????? | | ?# ####????????#"! %"" # ### #####?????????? | | #####???????????## & # ##### # #????????????? | | ##??????????????###### # # #????????????? | | #??????????????????# # ###???????????? | | #?????????????????# ## # # ###?????????? | | #?????##???????? #### #?????????? | | #?????# ?????? #### #????????? | | ? ??# ????? ## ### ## ##????????? | | ## ???#??### #### ###? ##?????????? | | ? ?? ????????##???## #?? #??????????? | | ? ???? ?????????????### #?? #??????????? | | ??????????# ?????####????#####?? #??????????? | | ??????????# ?## # #####""####"#"#??????????? | | #??###### ## ;###""" """#???????????? | | #??# #; @ # ####"###???????????? | | ##?# R ;# ???#?????????????? | | #? ## R #;## ?????????????????? | | ?? ???##; R R ##;# ????????????????? | | ??? ## #?????# ##### ????????????????? | | ??????# ????????# R #?? ##???????????????? | | ?????????????????### # ###?? ##????????????????? | | ???????????????????#####????? ?????????????????? | | ?????????????????????????????## ?????????????????? | | ??????????????????????????????? ?????????????????? | | ???????????????????????????????#?????????????????? | | ?????????????????????????????????????????????????? | | ?????????????????????????????????????????????????? | | ?????????????????????????????????????????????????? | | ?????????????????????????????????????????????????? | | ?????????????????????????????????????????????????? | | ?????????????????????????????????????????????????? | | ?????????????????????????????????????????????????? | | ?????????????????????????????????????????????????? | | ?????????????????????????????????????????????????? | | ?????????????????????????????????????????????????? | | ?????????????????????????????????????????????????? | | ?????????????????????????????????????????????????? | | ?????????????????????????????????????????????????? | | ?????????????????????????????????????????????????? | +----------------------------------------------------+ Best States ------------- Heat Dissipation 25 Energy Generation 15 Energy Capacity 250 Matter Stores 300 Matter Capacity 300 Sight Range 16 Terrain Scan Range 16 Terrain Scan Density 10 Evasion (%) 40 Recoil Reduction 2 Item Schematics ----------------- Hcp. Storage Unit | -10/Materials | Hacked Lrg. Storage Unit | -10/Materials | Hacked Robot Schematics ------------------ None Fabricated ------------ Nothing Repaired ---------- Nothing Alien Tech Used ----------------- None Achievements -------------- None Challenges ------------ None Game ------ Seed HugeCompactPower Manual? 0 Play Time 00:13:53 Cumulative 166.1 hours Start 2025.05.10 @ 22:41:45 End 2025.05.10 @ 22:55:49 Sessions 1 Manual Loads 0 Difficulty Rogue Special Mode None Game No. 93 Rogue 85 Adventurer 8 Explorer 0 Win Type - Total 3 Types 2/0/1/0/0/0/0/0/0/0 Lore% 70 Gallery% 67 Achievement% 57 Wizard Run 0 Options --------- Layout 2 ASCII 0 Keyboard 1 Movement Numpad Keybinds 1 Fullscreen 1 Font 48/Smallcaps Map View 50x44 Zoom Use 0% Tactical HUD 1 Map Filters NONE Filters NONE Steam 1 RUN: f4339dc0-f997-4fc9-be7a-e0c9bc3565be